[Event "FIDE Zonal 2.5 Open 2019"]
[Site "Montevideo"]
[Date "2019.04.14"]
[Round "2.23"]
[White "Reolon, Victor"]
[Black "Gaye, Gustavo"]
[Result "0-1"]
[ECO "A43"]
[WhiteElo "1659"]
[BlackElo "2000"]
[Annotator "NA"]
[PlyCount "116"]
[EventDate "2019.04.13"]
[EventType "swiss"]
[EventCountry "URU"]
[SourceTitle "playchess.com"]
[Source "ChessBase"]
[SourceQuality "1"]
[TimeControl "40/5400+30:1800+30"]

1. d4 {[%emt 0:00:00]} c5 {[%emt 0:01:57]} 2. Nf3 {[%emt 0:04:15]} cxd4 {[%emt 0:00:29]} 3. Qxd4 {[%emt 0:03:55]} Nc6 {[%emt 0:00:34]} 4. Qa4 {[%emt 0:01:18]} g6 {[%emt 0:02:22]} 5. g3 {[%emt 0:06:17]} Bg7 {[%emt 0:00:20]} 6. Bg2 {[%emt 0:00:08]} Nf6 {[%emt 0:00:48]} 7. O-O {[%emt 0:01:29]} O-O $11 {[%emt 0:00:26]} 8. c3 {[%emt 0:04:37]} d6 {[%emt 0:03:19]} 9. e4 {[%emt 0:08:43]} Bd7 {[%emt 0:03:08]} 10. Na3 {[%emt 0:10:32]} a6 {[%emt 0:04:17]} 11. Re1 {[%emt 0:04:48]} Qc7 {[%emt 0:05:22]} 12. Bd2 {[%emt 0:10:20]} Rac8 {[%emt 0:09:00]} 13. Rac1 {[%emt 0:01:52]} h6 {[%emt 0:05:44]} 14. Qc2 {[%emt 0:05:29]} b5 {[%emt 0:05:44]} 15. b4 {[%emt 0:08:34]} Be6 {[%emt 0:06:34]} 16. c4 {[%emt 0:04:29]} bxc4 {[%emt 0:09:29]} 17. Nxc4 {[%emt 0:13:15]} Nxb4 {[%emt 0:02:45]} 18. Bxb4 {[%emt 0:00:18]} Qxc4 {[%emt 0:00:21]} 19. Qxc4 {[%emt 0:01:55]} Rxc4 {[%emt 0:00:14]} 20. Rxc4 {[%emt 0:00:42]} Bxc4 {[%emt 0:00:02]} 21. a3 {[%emt 0:01:10]} Ng4 {[%emt 0:05:42]} 22. Rc1 {[%emt 0:02:22]} Rc8 {[%emt 0:02:45]} 23. Nd2 {[%emt 0:01:22]} Be6 {[%emt 0:00:43]} 24. Rxc8+ {[%emt 0:00:23]} Bxc8 {[%emt 0:00:02]} 25. Nb3 {[%emt 0:02:14]} Be6 {[%emt 0:02:29]} 26. Bh3 {[%emt 0:00:53]} Bxb3 {[%emt 0:01:26]} 27. Bxg4 {[%emt 0:00:03]} Bc4 {[%emt 0:00:12]} 28. Bd7 {[%emt 0:00:52]} Bd4 {[%emt 0:01:05]} 29. a4 {[%emt 0:01:00]} Kg7 {[%emt 0:02:13]} 30. Kg2 {[%emt 0:00:24]} Bc5 {[%emt 0:04:31]} 31. Bc3+ {[%emt 0:00:28]} e5 {[%emt 0:03:06]} 32. f4 {[%emt 0:00:23]} f6 {[%emt 0:00:13]} 33. fxe5 {[%emt 0:00:56]} dxe5 {[%emt 0:06:17]} 34. g4 {[%emt 0:00:44]} Kf7 {[%emt 0:00:43]} 35. h3 {[%emt 0:00:11]} Bd4 {[%emt 0:02:25]} 36. Bb4 {[%emt 0:00:23]} Bd3 {[%emt 0:01:57]} 37. Kf3 {[%emt 0:00:57]} Bc4 {[%emt 0:03:10]} 38. Kg2 {[%emt 0:00:13]} Be2 {[%emt 0:02:16]} 39. Bd2 {[%emt 0:00:53]} g5 {[%emt 0:02:40]} 40. Bb4 {[%emt 0:00:18]} h5 {[%emt 0:00:24]} 41. gxh5 {[%emt 0:30:07]} Bxh5 {[%emt 0:30:14]} 42. Bc6 {[%emt 0:00:45]} Be2 {[%emt 0:00:51]} 43. Bd7 {[%emt 0:00:00]} Bc4 {[%emt 0:00:00]} 44. Bc6 {[%emt 0:00:00]} Bd3 {[%emt 0:00:00]} 45. Kf3 {[%emt 0:00:00]} f5 {[%emt 0:00:00]} 46. Bd2 {[%emt 0:00:00]} Kg6 {[%emt 0:00:00]} 47. Be8+ {[%emt 0:00:00]} Kf6 {[%emt 0:00:00]} 48. Bc6 {[%emt 0:00:00]} Bc2 {[%emt 0:00:00]} 49. Ba5 {[%emt 0:00:46]} Bc5 {[%emt 0:00:00]} 50. Bd8+ {[%emt 0:01:46]} Be7 {[%emt 0:00:00]} 51. Bxe7+ {[%emt 0:00:56]} Kxe7 {[%emt 0:00:00]} 52. a5 {[%emt 0:01:16]} Bxe4+ {[%emt 0:00:00]} 53. Bxe4 {[%emt 0:00:53]} fxe4+ {[%emt 0:00:00]} 54. Ke3 {[%emt 0:00:48]} Kd6 {[%emt 0:00:00]} 55. Kxe4 {[%emt 0:00:24]} Ke6 {[%emt 0:00:00]} 56. Ke3 {[%emt 0:00:30]} Kf5 {[%emt 0:00:00]} 57. Kf3 {[%emt 0:00:18]} e4+ {[%emt 0:00:00]} 58. Ke3 {[%emt 0:00:14]} Ke5 {[%emt 0:00:00]} 0-1

[Event "FIDE Zonal 2.5 Open 2019"]
[Site "Montevideo"]
[Date "2019.04.14"]
[Round "2.24"]
[White "Curia, Santiago Jose"]
[Black "Manteiga, Franco"]
[Result "1-0"]
[ECO "B22"]
[WhiteElo "1989"]
[BlackElo "1684"]
[Annotator "NA"]
[PlyCount "63"]
[EventDate "2019.04.13"]
[EventType "swiss"]
[EventCountry "URU"]
[SourceTitle "playchess.com"]
[Source "ChessBase"]
[SourceQuality "1"]
[TimeControl "40/5400+30:1800+30"]

1. e4 c5 {[%emt 0:00:00]} 2. c3 {[%emt 0:02:27]} Nf6 {[%emt 0:00:00]} 3. e5 {[%emt 0:00:07]} Nd5 {[%emt 0:00:13]} 4. Bc4 {[%emt 0:00:07]} Nb6 {[%emt 0:03:42]} 5. Bb3 {[%emt 0:06:08]} Nc6 {[%emt 0:13:45]} 6. d4 {[%emt 0:00:43]} cxd4 {[%emt 0:02:40]} 7. cxd4 {[%emt 0:04:29]} d5 $11 {[%emt 0:16:44]} 8. Nc3 {[%emt 0:00:47]} e6 {[%emt 0:02:26]} 9. Nf3 {[%emt 0:02:41]} Be7 {[%emt 0:13:33]} 10. Bc2 {[%emt 0:01:04]} Bd7 {[%emt 0:04:35]} 11. a3 {[%emt 0:02:21]} a6 {[%emt 0:02:47]} 12. O-O {[%emt 0:01:08]} Rc8 {[%emt 0:10:49]} 13. Re1 {[%emt 0:05:21]} Na5 {[%emt 0:01:48]} 14. Qd3 {[%emt 0:01:55]} Qc7 {[%emt 0:04:15]} 15. Nd2 {[%emt 0:00:47]} Nac4 {[%emt 0:03:09]} 16. Nxc4 {[%emt 0:00:22]} Nxc4 {[%emt 0:02:02]} 17. Qg3 {[%emt 0:12:52]} g6 {[%emt 0:04:50]} 18. Bd3 Nxa3 {[%emt 0:00:15]} 19. Nxd5 {[%emt 0:06:38]} exd5 {[%emt 0:02:05]} 20. bxa3 {[%emt 0:00:20]} Qc3 {[%emt 0:01:57]} 21. Bh6 {[%emt 0:03:25]} Bxa3 {[%emt 0:05:34]} 22. Rad1 {[%emt 0:03:18]} b5 {[%emt 0:02:22]} 23. Re3 {[%emt 0:00:10]} Bc1 {[%emt 0:01:16]} 24. e6 Bxe3 {[%emt 0:00:13]} 25. exd7+ {[%emt 0:00:41]} Kxd7 26. fxe3 {[%emt 0:01:47]} Rhe8 {[%emt 0:01:15]} 27. Qf3 Qb3 {[%emt 0:00:02]} 28. Qxf7+ {[%emt 0:03:05]} Re7 29. Qf1 {[%emt 0:00:27]} Rc3 {[%emt 0:01:37]} 30. Bg5 {[%emt 0:00:39]} Re6 31. Qf7+ {[%emt 0:00:07]} Kd6 {[%emt 0:00:55]} 32. Bf4+ 1-0

[Event "FIDE Zonal 2.5 Open 2019"]
[Site "Montevideo"]
[Date "2019.04.14"]
[Round "2.25"]
[White "Romero, Robert"]
[Black "Lanzilotta, Marcelo"]
[Result "0-1"]
[ECO "B70"]
[WhiteElo "1599"]
[BlackElo "1972"]
[Annotator "NA"]
[PlyCount "110"]
[EventDate "2019.04.13"]
[EventType "swiss"]
[EventCountry "URU"]
[SourceTitle "playchess.com"]
[Source "ChessBase"]
[SourceQuality "1"]
[TimeControl "40/5400+30:1800+30"]

1. e4 {[%emt 0:00:00]} c5 {[%emt 0:20:09]} 2. Nf3 {[%emt 0:00:17]} d6 {[%emt 0:00:29]} 3. d4 {[%emt 0:00:10]} cxd4 {[%emt 0:00:06]} 4. Nxd4 {[%emt 0:00:08]} Nf6 {[%emt 0:00:07]} 5. Nc3 {[%emt 0:00:09]} g6 {[%emt 0:00:05]} 6. Bg5 {[%emt 0:02:05]} Bg7 {[%emt 0:00:03]} 7. h4 {[%emt 0:02:35]} Nc6 {[%emt 0:00:19]} 8. Nxc6 {[%emt 0:17:14]} bxc6 {[%emt 0:00:02]} 9. Bd3 {[%emt 0:00:12]} Rb8 {[%emt 0:00:45]} 10. Rb1 {[%emt 0:00:09]} Be6 {[%emt 0:00:16]} 11. O-O {[%emt 0:03:06]} Qa5 {[%emt 0:00:34]} 12. a3 {[%emt 0:01:04]} O-O {[%emt 0:00:10]} 13. Re1 {[%emt 0:11:11]} Rb7 {[%emt 0:02:44]} 14. Bd2 {[%emt 0:04:49]} Qc7 {[%emt 0:02:42]} 15. Bf4 {[%emt 0:01:29]} Rfb8 {[%emt 0:01:31]} 16. b3 {[%emt 0:01:45]} Nd7 {[%emt 0:02:06]} 17. Na4 {[%emt 0:05:58]} a5 {[%emt 0:11:14]} 18. h5 {[%emt 0:01:24]} c5 {[%emt 0:01:39]} 19. hxg6 {[%emt 0:04:22]} hxg6 {[%emt 0:00:24]} 20. Ba6 {[%emt 0:01:13]} Ra7 {[%emt 0:00:38]} 21. Qd3 {[%emt 0:06:19]} g5 {[%emt 0:18:35]} 22. Bg3 {[%emt 0:01:41]} Be5 {[%emt 0:01:16]} 23. Bc4 {[%emt 0:03:05]} Bxc4 {[%emt 0:02:25]} 24. bxc4 {[%emt 0:02:19]} Rab7 {[%emt 0:01:07]} 25. Rxb7 {[%emt 0:00:42]} Rxb7 {[%emt 0:07:13]} 26. Nc3 {[%emt 0:00:07]} Bxc3 {[%emt 0:00:05]} 27. Qxc3 {[%emt 0:00:09]} f6 {[%emt 0:01:29]} 28. f4 {[%emt 0:00:52]} gxf4 {[%emt 0:08:50]} 29. Bxf4 {[%emt 0:00:10]} Ne5 {[%emt 0:00:59]} 30. Qg3+ {[%emt 0:05:55]} Kf7 {[%emt 0:00:04]} 31. Qh3 {[%emt 0:01:19]} Ke8 {[%emt 0:03:54]} 32. Bxe5 {[%emt 0:01:24]} fxe5 {[%emt 0:02:01]} 33. Qe6 {[%emt 0:00:44]} Qc6 {[%emt 0:02:08]} 34. Re3 {[%emt 0:01:45]} Kd8 {[%emt 0:03:11]} 35. g4 {[%emt 0:04:53]} Qd7 {[%emt 0:00:49]} 36. Qxd7+ {[%emt 0:02:27]} Kxd7 {[%emt 0:00:01]} 37. g5 {[%emt 0:00:50]} Ke6 {[%emt 0:00:30]} 38. Rf3 {[%emt 0:00:09]} Rb8 {[%emt 0:00:02]} 39. Kg2 {[%emt 0:01:09]} Rg8 {[%emt 0:00:34]} 40. Rg3 {[%emt 0:00:13]} Kf7 {[%emt 0:00:22]} 41. Rf3+ {[%emt 0:34:49]} Kg6 {[%emt 0:32:02]} 42. Rb3 {[%emt 0:01:39]} Rf8 {[%emt 0:01:47]} 43. Rb7 {[%emt 0:00:35]} Kxg5 {[%emt 0:01:09]} 44. Rxe7 {[%emt 0:00:27]} Kf4 {[%emt 0:00:02]} 45. Ra7 {[%emt 0:00:46]} Kxe4 {[%emt 0:00:07]} 46. Rxa5 {[%emt 0:00:31]} Kd4 {[%emt 0:00:02]} 47. Ra6 {[%emt 0:01:01]} Rf6 {[%emt 0:00:07]} 48. a4 {[%emt 0:00:23]} e4 {[%emt 0:00:02]} 49. Rb6 {[%emt 0:00:19]} e3 {[%emt 0:02:49]} 50. Rb1 {[%emt 0:00:15]} Kxc4 {[%emt 0:01:56]} 51. a5 {[%emt 0:00:11]} d5 {[%emt 0:00:04]} 52. Rb6 {[%emt 0:05:53]} Rf2+ {[%emt 0:00:18]} 53. Kg1 {[%emt 0:00:26]} Rxc2 {[%emt 0:00:03]} 54. Rb1 {[%emt 0:00:55]} Ra2 {[%emt 0:00:29]} 55. Rc1+ {[%emt 0:00:06]} Kd4 {[%emt 0:00:09]} 0-1

[Event "FIDE Zonal 2.5 Open 2019"]
[Site "Montevideo"]
[Date "2019.04.14"]
[Round "2.26"]
[White "Prieto Perez, Rodrigo"]
[Black "Moccero, Eduardo"]
[Result "0-1"]
[ECO "B01"]
[WhiteElo "2037"]
[BlackElo "1939"]
[Annotator "NA"]
[PlyCount "66"]
[EventDate "2019.04.13"]
[EventType "swiss"]
[EventCountry "URU"]
[SourceTitle "playchess.com"]
[Source "ChessBase"]
[SourceQuality "1"]
[TimeControl "40/5400+30:1800+30"]

1. e4 {[%emt 0:00:00]} d5 {[%emt 0:00:00]} 2. exd5 {[%emt 0:00:00]} Qxd5 {[%emt 0:00:00]} 3. Nc3 {[%emt 0:00:00]} Qa5 {[%emt 0:00:00]} 4. d4 {[%emt 0:00:02]} Nf6 {[%emt 0:00:13] LiveBook: 3334 Games} 5. Bd2 {[%emt 0:02:28]} Bf5 {[%emt 0:09:41]} 6. Qf3 {[%emt 0:02:43]} Bc8 {[%emt 0:02:14]} 7. Bc4 c6 8. Nd5 {[%emt 0:04:33]} Qd8 {[%emt 0:00:54]} 9. Nxf6+ {[%emt 0:00:16]} gxf6 {[%emt 0:00:13]} 10. Ne2 {[%emt 0:06:12]} e6 $18 {[%emt 0:02:34]} 11. O-O-O {[%emt 0:02:59]} Be7 {[%emt 0:08:03]} 12. Rhe1 Na6 {[%emt 0:04:28]} 13. Bxa6 {[%emt 0:03:28]} bxa6 {[%emt 0:00:19]} 14. Qxc6+ {[%emt 0:00:40]} Bd7 {[%emt 0:00:06]} 15. Qxa6 Qc7 16. Bf4 {[%emt 0:04:44]} e5 {[%emt 0:03:35]} 17. Bg3 {[%emt 0:01:12]} Rb8 {[%emt 0:02:43]} 18. d5 {[%emt 0:03:45]} Bd6 {[%emt 0:03:52]} 19. f4 {[%emt 0:06:41]} Bb5 {[%emt 0:00:46]} 20. Qxd6 {[%emt 0:06:44]} Qxd6 {[%emt 0:00:16]} 21. fxe5 {[%emt 0:00:12]} fxe5 {[%emt 0:00:59]} 22. Bxe5 Qxe5 {[%emt 0:01:35]} 23. Nf4 {[%emt 0:01:06]} Qxe1 {[%emt 0:00:30]} 24. Rxe1+ {[%emt 0:00:01]} Kd7 {[%emt 0:00:32]} 25. b3 {[%emt 0:00:39]} Rhe8 {[%emt 0:01:59]} 26. Rd1 Re4 {[%emt 0:02:30]} 27. g3 {[%emt 0:00:51]} Kd6 {[%emt 0:02:12]} 28. c4 Bxc4 {[%emt 0:01:56]} 29. bxc4 {[%emt 0:00:37]} Rxc4+ {[%emt 0:00:07]} 30. Kd2 {[%emt 0:00:15]} Rd4+ {[%emt 0:00:15]} 31. Ke2 {[%emt 0:00:32]} Rb2+ {[%emt 0:00:46]} 32. Ke1 {[%emt 0:00:04]} Rxd1+ {[%emt 0:00:24]} 33. Kxd1 {[%emt 0:00:08]} Rxh2 {[%emt 0:00:06]} 0-1

[Event "FIDE Zonal 2.5 Open 2019"]
[Site "Montevideo"]
[Date "2019.04.14"]
[Round "2.27"]
[White "Avedisian, Alexander"]
[Black "Ramirez Dominguez, Agustin"]
[Result "1/2-1/2"]
[ECO "A00"]
[WhiteElo "1898"]
[BlackElo "1907"]
[Annotator "NA"]
[PlyCount "96"]
[EventDate "2019.04.13"]
[EventType "swiss"]
[EventCountry "URU"]
[SourceTitle "playchess.com"]
[Source "ChessBase"]
[SourceQuality "1"]
[TimeControl "40/5400+30:1800+30"]

1. g3 {[%emt 0:00:00]} g6 {[%emt 0:00:03]} 2. Bg2 {[%emt 0:00:00]} Bg7 {[%emt 0:00:05]} 3. Nf3 {[%emt 0:00:00]} Nf6 {[%emt 0:00:40]} 4. O-O {[%emt 0:00:00]} O-O 5. c4 c5 {[%emt 0:03:36]} 6. Nc3 {[%emt 0:00:39]} d5 {[%emt 0:01:21]} 7. cxd5 {[%emt 0:05:16]} Nxd5 {[%emt 0:01:23]} 8. Nxd5 {[%emt 0:00:14]} Qxd5 {[%emt 0:00:09]} 9. d3 {[%emt 0:00:20]} Nc6 {[%emt 0:01:44]} 10. Ng5 {[%emt 0:01:22]} Qd7 {[%emt 0:02:54]} 11. Qa4 {[%emt 0:03:03]} Nd4 {[%emt 0:05:04]} 12. Qd1 {[%emt 0:01:45]} Rb8 {[%emt 0:03:24]} 13. Nf3 {[%emt 0:08:04]} Nxf3+ {[%emt 0:04:29]} 14. Bxf3 {[%emt 0:00:25]} b6 {[%emt 0:00:07]} 15. Qc2 {[%emt 0:06:05]} Bb7 {[%emt 0:01:53]} 16. Bxb7 {[%emt 0:00:43]} Qxb7 {[%emt 0:00:07]} 17. Bd2 {[%emt 0:00:50]} Rbc8 {[%emt 0:01:28]} 18. Bc3 {[%emt 0:01:08]} Rfd8 {[%emt 0:04:24]} 19. Bxg7 {[%emt 0:00:26]} Kxg7 {[%emt 0:00:00]} 20. Qc3+ {[%emt 0:01:26]} Kg8 21. a4 {[%emt 0:03:56]} a6 {[%emt 0:05:40]} 22. b4 {[%emt 0:03:39]} cxb4 {[%emt 0:01:59]} 23. Qxb4 {[%emt 0:00:15]} Rc2 {[%emt 0:00:54]} 24. Rfe1 {[%emt 0:03:07]} Rc7 {[%emt 0:03:19]} 25. Rab1 {[%emt 0:00:23]} Rb8 {[%emt 0:01:06]} 26. e4 {[%emt 0:05:34]} b5 {[%emt 0:01:47]} 27. axb5 {[%emt 0:09:05]} Qxb5 {[%emt 0:02:47]} 28. Qa3 {[%emt 0:08:19]} Qxb1 {[%emt 0:00:52]} 29. Rxb1 {[%emt 0:00:06]} Rxb1+ {[%emt 0:00:07]} 30. Kg2 {[%emt 0:00:03]} Ra7 {[%emt 0:02:10]} 31. Qa5 {[%emt 0:00:48]} Rbb7 {[%emt 0:00:42]} 32. Kf3 {[%emt 0:05:32]} Kg7 33. g4 {[%emt 0:00:23]} f6 {[%emt 0:03:01]} 34. h4 {[%emt 0:01:10]} Rb5 {[%emt 0:01:18]} 35. Qa4 {[%emt 0:00:35]} Rb6 {[%emt 0:01:02]} 36. g5 {[%emt 0:05:54]} a5 {[%emt 0:01:32]} 37. Kg4 {[%emt 0:10:30]} Rb4 {[%emt 0:01:48]} 38. Qa3 {[%emt 0:00:10]} h5+ {[%emt 0:01:02]} 39. gxh6+ {[%emt 0:01:10]} Kxh6 {[%emt 0:00:12]} 40. f4 {[%emt 0:02:53]} Rb5 {[%emt 0:03:35]} 41. f5 {[%emt 0:32:44]} gxf5+ {[%emt 0:30:53]} 42. exf5 {[%emt 0:00:05]} a4 {[%emt 0:00:57]} 43. Qc1+ {[%emt 0:04:47]} Kg7 {[%emt 0:02:24]} 44. Qe3 {[%emt 0:00:00]} Rba5 {[%emt 0:00:00]} 45. h5 {[%emt 0:00:00]} e5 {[%emt 0:00:00]} 46. h6+ {[%emt 0:00:00]} Kh7 {[%emt 0:00:00]} 47. Kh5 {[%emt 0:00:00]} R5a6 {[%emt 0:00:00]} 48. Qg1 {[%emt 0:03:24]} a3 {[%emt 0:00:00]} 1/2-1/2

[Event "FIDE Zonal 2.5 Open 2019"]
[Site "Montevideo"]
[Date "2019.04.14"]
[Round "3.21"]
[White "Fein, Jorge"]
[Black "Avedisian, Alexander"]
[Result "1-0"]
[ECO "A04"]
[WhiteElo "1648"]
[BlackElo "1898"]
[Annotator "NA RC"]
[PlyCount "94"]
[EventDate "2019.04.13"]
[EventType "swiss"]
[EventCountry "URU"]
[SourceTitle "playchess.com"]
[Source "ChessBase"]
[SourceQuality "1"]
[TimeControl "40/5400+30:1800+30"]

{[%evp 19,74,-119,-101,32767,32767,-87,-87,-79,-13,-85,-71,-121,-98,-91,-100,-107,-105,-141,-97,-150,-132,-160,32767,32767,32767,-246,32767,-332,32767,-357,-337,-295,-310,32767,32767,-335,-383,-398,-371,-397,-197,-393,-293,-368,-317,-388,-776,-667,-692,-694,-770,-737,-839,-909,-925,-869,-832]} 1. Nf3 {[%emt 0:00:00]} g6 {[%emt 0:00:00]} 2. e4 {[%emt 0:01:16]} c5 {[%emt 0:00:00]} 3. d4 {[%emt 0:01:04]} cxd4 {[%emt 0:00:05]} 4. Qxd4 {[%emt 0:00:55]} Nf6 {[%emt 0:00:18]} 5. e5 {[%emt 0:01:40]} Nc6 {[%emt 0:00:16]} 6. Qc3 {[%emt 0:01:28] B27: Sicilian: 2 Nf3, unusual Black 2nd moves} (6. Qa4 Nd5 7. Qe4 Nb6 8. Nc3 Bg7 9. Bf4 d5 10. exd6 Bf5 11. dxe7 Qd7 12. Qe3 Nb4 13. Rc1 Nxc2+ 14. Rxc2 Bxc2 15. Bb5 Bxc3+ 16. Qxc3 Qxb5 17. Qxh8+ Kxe7 {½-½ (22) Ortiz Suarez,I (2548)-Guseinov,G (2654) Barbera del Valles 2018}) 6... Ne4 {[%emt 0:06:57]} 7. Qe3 {[%emt 0:02:20]} d5 {[%emt 0:00:19]} 8. exd6 {[%emt 0:03:55]} Nxd6 {[%emt 0:00:09]} 9. Qc3 {[%emt 0:03:47]} f6 {[%emt 0:03:55]} 10. Bf4 {[%emt 0:07:17]} (10. Be3 $11) 10... e5 {[%emt 0:03:20]} 11. Be3 {[%emt 0:05:14]} Nf5 $146 {[%emt 0:02:17]} ({Predecessor:} 11... Be6 12. Nbd2 Rc8 13. Bc5 Na5 {0-1 (29) Lukosius,R (1816)-Malinin,Y (2216) Plateliai 2016}) 12. Qd2 {[%emt 0:06:54]} (12. Bb5 $11) 12... Be6 {[%emt 0:08:19]} 13. Bb5 {[%emt 0:05:55]} Bd5 {[%emt 0:14:20]} ({Black should play} 13... Kf7 $17 14. Bxc6 bxc6) 14. c4 {[%emt 0:07:20]} (14. Nc3 $11 Bxf3 15. gxf3) 14... Bxf3 {[%emt 0:03:17]} 15. Qxd8+ {[%emt 0:01:45]} Rxd8 {[%emt 0:00:20]} 16. gxf3 {[%emt 0:00:17]} Nfd4 {[%emt 0:02:57]} 17. Bxd4 {[%emt 0:01:42]} Rxd4 {[%emt 0:00:37]} 18. Ke2 {[%emt 0:02:50]} Kf7 {[%emt 0:01:28]} 19. Bxc6 {[%emt 0:01:52]} bxc6 {[%emt 0:00:12]} 20. b3 {[%emt 0:00:19]} Bh6 {[%emt 0:06:45]} 21. Nc3 {[%emt 0:08:48]} Rd2+ {[%emt 0:00:37]} 22. Ke1 {[%emt 0:00:32]} Rhd8 {[%emt 0:02:09]} 23. Rg1 {[%emt 0:06:47]} f5 {[%emt 0:01:11]} 24. Rg3 {[%emt 0:00:53]} R2d3 {[%emt 0:05:15]} 25. Na4 {[%emt 0:00:36]} Bf4 {[%emt 0:02:54]} 26. Rh3 {[%emt 0:00:34]} h5 {[%emt 0:00:33]} 27. Nc5 {[%emt 0:01:31]} Rd2 {[%emt 0:01:29]} 28. Na6 {[%emt 0:02:03]} Bh6 {[%emt 0:04:56]} 29. Nb4 {[%emt 0:01:01]} R2d6 {[%emt 0:01:49]} 30. Na6 $2 {[%emt 0:01:39]} (30. c5 Bd2+ 31. Ke2) 30... Bf8 {[%emt 0:01:40]} 31. Nc5 {[%emt 0:02:10]} (31. f4 $142 exf4 32. Kf1) 31... Rd4 {[%emt 0:02:10]} 32. Na4 {[%emt 0:01:19]} Bb4+ {[%emt 0:00:00]} 33. Kf1 {[%emt 0:02:58]} Rd1+ {[%emt 0:00:37]} 34. Rxd1 {[%emt 0:00:12]} Rxd1+ {[%emt 0:00:05]} 35. Kg2 {[%emt 0:00:10]} f4 {[%emt 0:02:58]} 36. a3 {[%emt 0:01:42]} Bxa3 $19 {[%emt 0:00:47]} 37. Nc3 {[%emt 0:00:06]} Rd3 {[%emt 0:00:57]} 38. Ne4 {[%emt 0:01:48]} Rxb3 {[%emt 0:00:22]} 39. Ng5+ {[%emt 0:02:59]} Ke7 {[%emt 0:00:14]} 40. Ne4 {[%emt 0:00:46]} a5 {[%emt 0:00:38]} 41. Nd2 {[%emt 0:31:59]} Rb2 {[%emt 0:30:43]} 42. Ne4 {[%emt 0:00:26]} Bb4 {[%emt 0:00:31]} 43. c5 {[%emt 0:04:33]} a4 {[%emt 0:00:13]} 44. Nd6 {[%emt 0:00:56]} Bxc5 {[%emt 0:02:15]} 45. Nc4 {[%emt 0:00:11]} a3 {[%emt 0:01:07]} 46. Nxe5 {[%emt 0:01:27]} Rxf2+ {[%emt 0:00:47]} 47. Kh1 {[%emt 0:00:19]} a2 {[%emt 0:00:15]} 1-0

[Event "FIDE Zonal 2.5 Open 2019"]
[Site "Montevideo"]
[Date "2019.04.14"]
[Round "3.22"]
[White "Ramirez Dominguez, Agustin"]
[Black "Rodriguez Farias, Eduardo"]
[Result "0-1"]
[ECO "B34"]
[WhiteElo "1907"]
[BlackElo "1898"]
[Annotator "NA RC"]
[PlyCount "35"]
[EventDate "2019.04.13"]
[EventType "swiss"]
[EventCountry "URU"]
[SourceTitle "playchess.com"]
[Source "ChessBase"]
[SourceQuality "1"]
[TimeControl "40/5400+30:1800+30"]

{[%evp 8,35,17,20,34,0,1,32767,32767,32767,32767,32767,32767,32767,32767,32767,32767,32767,32767,32767,-121,-144,-122,32767,32767,-606,-631,-5581,-29989,-29988]} 1. e4 {[%emt 0:00:00]} c5 {[%emt 0:00:00]} 2. Nf3 {[%emt 0:00:00]} Nc6 {[%emt 0:00:00]} 3. d4 {[%emt 0:00:00]} cxd4 {[%emt 0:00:02]} 4. Nxd4 {[%emt 0:00:00]} Nf6 {[%emt 0:00:19]} 5. Nc3 {[%emt 0:00:14]} e5 {[%emt 0:00:16]} 6. Nf3 {[%emt 0:01:12]} Bb4 {[%emt 0:00:13]} 7. Bd3 {[%emt 0:00:53]} d5 {[%emt 0:00:32]} 8. exd5 {[%emt 0:02:46]} Nxd5 {[%emt 0:00:13]} 9. Bd2 {[%emt 0:00:12]} Nxc3 {[%emt 0:00:07]} 10. Bxc3 {[%emt 0:01:12]} Bxc3+ {[%emt 0:00:42]} 11. bxc3 {[%emt 0:00:02]} Qa5 {[%emt 0:05:13]} 12. Qd2 {[%emt 0:02:06]} O-O {[%emt 0:02:22]} 13. Bc4 {[%emt 0:10:50]} Bg4 {[%emt 0:09:34]} 14. Qe3 {[%emt 0:04:27] [#]} Nd4 $1 {[%emt 0:09:51]} 15. Nxd4 {[%emt 0:02:36]} exd4 {[%emt 0:00:13]} 16. Qxd4 $2 {[%emt 0:00:08]} (16. Qg3) 16... Rad8 {[%emt 0:00:39]} 17. Qxg4 {[%emt 0:01:44]} Qxc3+ {[%emt 0:00:17] Double Attack} 18. Kf1 {[%emt 0:01:15]} 0-1